fUSD/lending_fUSD_20240105
["ID","MTS","AMOUNT","RATE_DAILY","PERIOD"]
[310312125,1704471113805,-1372.88,0.00031232,2]
[310312126,1704471113815,-753.94,0.00031232,2]
[310312127,1704471113824,-500.0,0.00031232,2]
[310312128,1704471113834,-526.59831158,0.00031232,2]
[310312129,1704471113843,-500.0,0.00031232,2]
[310312130,1704471113853,-653.2,0.00031232,2]
[310312131,1704471113865,-500.0,0.00031232,2]
[310312132,1704471113875,-515.93,0.00031232,2]
[310312133,1704471113884,-500.0,0.00031232,2]
[310312134,1704471113893,-500.0,0.00031232,2]
[310312135,1704471113903,-500.0,0.00031232,2]
[310312136,1704471113912,-1253.1,0.00031232,2]
[310312137,1704471113922,-500.0,0.00031232,2]
[310312138,1704471113931,-500.0,0.00031232,2]
[310312139,1704471113940,-727.02,0.00031232,2]
[310312140,1704471113950,-500.0,0.00031232,2]
[310312141,1704471113960,-500.0,0.00031232,2]
[310312142,1704471113971,-1238.19,0.00031232,2]
[310312143,1704471113981,-500.0,0.00031232,2]
[310312144,1704471113991,-772.08,0.00031232,2]
[310312145,1704471114000,-500.0,0.00031232,2]
[310312146,1704471114010,-500.0,0.00031232,2]
[310312147,1704471114019,-500.0,0.00031232,2]
[310312148,1704471114029,-500.0,0.00031232,2]
[310312149,1704471114039,-695.57,0.00031232,2]
[310312150,1704471114049,-500.0,0.00031232,2]
[310312151,1704471114058,-947.64,0.00031232,2]
[310312152,1704471114068,-500.0,0.00031232,2]
[310312153,1704471114077,-500.0,0.00031232,2]
[310312154,1704471114087,-644.36,0.00031232,2]
[310312155,1704471114096,-662.68,0.00031232,2]
[310312156,1704471114106,-446.3080471,0.00031232,2]
[310312157,1704471114115,-500.0,0.00031232,2]
[310312158,1704471114125,-227.58557562,0.00031232,2]
[310312159,1704471114134,-500.0,0.00031232,2]
[310312160,1704471114144,-1000.0,0.00031232,2]
[310312161,1704471114154,-500.0,0.00031232,2]
[310312162,1704471114163,-500.0,0.00031232,2]
[310312163,1704471114172,-500.0,0.00031232,2]
[310312164,1704471114182,-500.0,0.00031232,2]
[310312165,1704471114191,-500.0,0.00031232,2]
[310312166,1704471114200,-500.0,0.00031232,2]
[310312167,1704471114209,-500.0,0.00031232,2]
[310312168,1704471114218,-500.0,0.00031232,2]
[310312169,1704471114227,-606.21,0.00031232,2]
[310312170,1704471114237,-500.0,0.00031232,2]
[310312171,1704471114247,-1236.18,0.00031232,2]
[310312172,1704471114256,-500.0,0.00031232,2]
[310312173,1704471114266,-500.0,0.00031232,2]
[310312174,1704471114275,-500.0,0.00031232,2]
[310312175,1704471114284,-500.0,0.00031232,2]
[310312176,1704471114294,-500.0,0.00031232,2]
[310312177,1704471114303,-500.0,0.00031232,2]
[310312178,1704471114313,-947.15,0.00031232,2]
[310312179,1704471114322,-500.0,0.00031232,2]
[310312180,1704471114331,-500.0,0.00031232,2]
[310312181,1704471114341,-500.0,0.00031232,2]
[310312182,1704471114350,-482.09723664,0.00031232,2]
[310312183,1704471114359,-361.57363029,0.00031232,2]
[310312184,1704471114369,-500.0,0.00031232,2]
[310312185,1704471114378,-500.0,0.00031232,2]
[310312186,1704471114388,-500.0,0.00031232,2]
[310312187,1704471114397,-500.59,0.00031232,2]
[310312188,1704471114405,-625.62,0.00031232,2]
[310312189,1704471114415,-545.24,0.00031232,2]
[310312190,1704471114425,-500.0,0.00031232,2]
[310312191,1704471114434,-637.82,0.00031232,2]
[310312192,1704471114443,-530.66,0.00031232,2]
[310312193,1704471114453,-500.0,0.00031232,2]
[310312194,1704471114462,-500.0,0.00031232,2]
[310312195,1704471114471,-449.90186138,0.00031232,2]
[310312196,1704471114481,-500.0,0.00031232,2]
[310312197,1704471114490,-500.0,0.00031232,2]
[310312198,1704471114500,-500.0,0.00031232,2]
[310312199,1704471114510,-800.13,0.00031232,2]
[310312200,1704471114519,-500.0,0.00031232,2]
[310312201,1704471114527,-500.0,0.00031232,2]
[310312202,1704471114537,-500.0,0.00031232,2]
[310312203,1704471114546,-500.0,0.00031232,2]
[310312204,1704471114556,-218.77766993,0.00031232,2]
[310312205,1704471114565,-500.0,0.00031232,2]
[310312206,1704471114575,-500.0,0.00031232,2]
[310312207,1704471114584,-500.0,0.00031232,2]
[310312208,1704471114594,-500.0,0.00031232,2]
[310312209,1704471114605,-1387.56,0.00031232,2]
[310312210,1704471114615,-560.66596616,0.00031232,2]
[310312211,1704471114626,-500.0,0.00031232,2]
[310312212,1704471114635,-500.0,0.00031232,2]
[310312213,1704471114646,-500.0,0.00031232,2]
[310312214,1704471114656,-626.55,0.00031232,2]
[310312215,1704471114665,-1366.99,0.00031232,2]
[310312216,1704471114675,-797.63,0.00031232,2]
[310312217,1704471114684,-500.0,0.00031232,2]
[310312218,1704471114694,-500.0,0.00031232,2]
[310312219,1704471114703,-500.0,0.00031232,2]
[310312220,1704471114713,-551.05251902,0.00031232,2]
[310312221,1704471114723,-500.0,0.00031232,2]
[310312222,1704471114733,-500.0,0.00031232,2]
[310312223,1704471114742,-500.0,0.00031232,2]
[310312224,1704471114752,-703.77,0.00031232,2]
[310312225,1704471114762,-500.0,0.00031232,2]
[310312226,1704471114771,-500.0,0.00031232,2]
[310312227,1704471114781,-581.02,0.00031232,2]
[310312228,1704471114791,-1360.29,0.00031232,2]
[310312229,1704471114802,-500.0,0.00031232,2]
[310312230,1704471114812,-500.0,0.00031232,2]
[310312231,1704471114822,-543.32676542,0.00031232,2]
[310312232,1704471114832,-500.0,0.00031232,2]
[310312233,1704471114841,-500.0,0.00031232,2]
[310312234,1704471114851,-531.42,0.00031232,2]
[310312235,1704471114861,-700.18,0.00031232,2]
[310312236,1704471114871,-500.0,0.00031232,2]
[310312237,1704471114882,-507.39593235,0.00031232,2]
[310312238,1704471114893,-500.0,0.00031232,2]
[310312239,1704471114903,-500.0,0.00031232,2]
[310312240,1704471114912,-500.0,0.00031232,2]
[310312241,1704471114921,-500.0,0.00031232,2]
[310312242,1704471114931,-500.0,0.00031232,2]
[310312243,1704471114942,-1036.76,0.00031232,2]
[310312244,1704471114951,-813.88,0.00031232,2]
[310312245,1704471114961,-962.57,0.00031232,2]
[310312246,1704471114971,-500.0,0.00031232,2]
[310312247,1704471114981,-500.0,0.00031232,2]
[310312248,1704471114991,-1289.38,0.00031232,2]
[310312249,1704471115001,-500.0,0.00031232,2]
[310312250,1704471115010,-500.0,0.00031232,2]
[310312251,1704471115019,-500.0,0.00031232,2]
[310312252,1704471115028,-4950.03,0.00031232,2]
[310312253,1704471115037,-500.0,0.00031232,2]
[310312254,1704471115046,-500.0,0.00031232,2]
[310312255,1704471115057,-734.2,0.00031232,2]
[310312256,1704471115066,-500.0,0.00031232,2]
[310312257,1704471115076,-500.0,0.00031232,2]
[310312258,1704471115086,-500.0,0.00031232,2]
[310312259,1704471115095,-500.0,0.00031232,2]
[310312260,1704471115105,-500.0,0.00031232,2]
[310312261,1704471115115,-500.0,0.00031232,2]
[310312262,1704471115125,-500.0,0.00031232,2]
[310312263,1704471115134,-500.0,0.00031232,2]
[310312264,1704471115143,-500.0,0.00031232,2]
[310312265,1704471115153,-712.3,0.00031232,2]
[310312266,1704471115162,-573.47,0.00031232,2]
[310312267,1704471115172,-500.0,0.00031232,2]
[310312268,1704471115182,-834.43,0.00031232,2]
[310312269,1704471115191,-500.0,0.00031232,2]
[310312270,1704471115201,-1459.15,0.00031232,2]
[310312271,1704471115210,-500.0,0.00031232,2]
[310312272,1704471115220,-753.46,0.00031232,2]
[310312273,1704471115229,-500.0,0.00031232,2]
[310312274,1704471115239,-500.0,0.00031232,2]
[310312275,1704471115248,-500.0,0.00031232,2]
[310312276,1704471115258,-500.0,0.00031232,2]
[310312277,1704471115267,-1169.4,0.00031232,2]
[310312278,1704471115277,-564.11,0.00031232,2]
[310312279,1704471115286,-598.84,0.00031232,2]
[310312280,1704471115295,-500.0,0.00031232,2]
[310312281,1704471115304,-1096.24,0.00031232,2]
[310312282,1704471115314,-500.0,0.00031232,2]
[310312283,1704471115324,-500.0,0.00031232,2]
[310312284,1704471115336,-1425.41,0.00031232,2]
[310312285,1704471115345,-500.0,0.00031232,2]
[310312286,1704471115356,-6105.28,0.00031232,2]
[310312287,1704471115365,-2530.93,0.00031232,2]
[310312288,1704471115375,-500.0,0.00031232,2]
[310312289,1704471115384,-500.0,0.00031232,2]
[310312290,1704471115394,-500.0,0.00031232,2]
[310312291,1704471115403,-500.0,0.00031232,2]
[310312292,1704471115412,-500.0,0.00031232,2]
[310312293,1704471115421,-500.0,0.00031232,2]
[310312294,1704471115431,-500.0,0.00031232,2]
[310312295,1704471115441,-500.0,0.00031232,2]
[310312296,1704471115450,-500.0,0.00031232,2]
[310312297,1704471115459,-820.35,0.00031232,2]
[310312298,1704471115469,-500.0,0.00031232,2]
[310312299,1704471115478,-500.0,0.00031232,2]
[310312300,1704471115488,-1820.15,0.00031232,2]
[310312301,1704471115497,-500.0,0.00031232,2]
[310312302,1704471115506,-1454.88,0.00031232,2]
[310312303,1704471115516,-848.25,0.00031232,2]
[310312304,1704471115525,-500.0,0.00031232,2]
[310312305,1704471115535,-3529.52,0.00031232,2]
[310312306,1704471115544,-500.0,0.00031232,2]
[310312307,1704471115553,-1261.77,0.00031232,2]
[310312308,1704471115563,-500.0,0.00031232,2]
[310312309,1704471115571,-500.0,0.00031232,2]
[310312310,1704471115581,-500.0,0.00031232,2]
[310312311,1704471115590,-500.0,0.00031232,2]
[310312312,1704471115599,-500.0,0.00031232,2]
[310312313,1704471115609,-673.04,0.00031232,2]
[310312314,1704471115619,-522.36,0.00031232,2]
[310312315,1704471115628,-500.0,0.00031232,2]
[310312316,1704471115638,-214.29399879,0.00031232,2]
[310312317,1704471115647,-1207.05,0.00031232,2]
[310312318,1704471115657,-806.5,0.00031232,2]
[310312319,1704471115667,-543.14,0.00031232,2]
[310312320,1704471115677,-500.0,0.00031232,2]
[310312321,1704471115686,-2710.43,0.00031232,2]
[310312322,1704471115695,-500.0,0.00031232,2]
[310312323,1704471115705,-731.44,0.00031232,2]
[310312324,1704471115714,-500.0,0.00031232,2]
[310312325,1704471115724,-500.0,0.00031232,2]
[310312326,1704471115733,-500.0,0.00031232,2]
[310312327,1704471115743,-519.5,0.00031232,2]
[310312328,1704471115753,-2046.64,0.00031232,2]
[310312329,1704471115763,-762.26,0.00031232,2]
[310312330,1704471115773,-500.0,0.00031232,2]
[310312331,1704471115786,-1317.65,0.00031232,2]
[310312332,1704471115795,-620.31,0.00031232,2]
[310312333,1704471115805,-5333.49,0.00031232,2]
[310312334,1704471115815,-500.0,0.00031232,2]
[310312335,1704471115825,-500.0,0.00031232,2]
[310312336,1704471115834,-500.0,0.00031232,2]
[310312337,1704471115844,-978.21,0.00031232,2]
[310312338,1704471115854,-1254.61,0.00031232,2]
[310312339,1704471115864,-500.0,0.00031232,2]
[310312340,1704471115873,-500.0,0.00031232,2]
[310312341,1704471115886,-802.02,0.00031232,2]
[310312342,1704471115895,-1336.26,0.00031232,2]
[310312343,1704471115905,-537.87,0.00031232,2]
[310312344,1704471115915,-500.0,0.00031232,2]
[310312345,1704471115925,-500.0,0.00031232,2]
[310312346,1704471115935,-500.0,0.00031232,2]
[310312347,1704471115944,-3771.03,0.00031232,2]
[310312348,1704471115953,-500.0,0.00031232,2]
[310312349,1704471115963,-500.0,0.00031232,2]
[310312350,1704471115973,-500.0,0.00031232,2]
[310312351,1704471115982,-525.81,0.00031232,2]
[310312352,1704471115992,-500.0,0.00031232,2]
[310312353,1704471116002,-500.0,0.00031232,2]
[310312354,1704471116014,-500.0,0.00031232,2]
[310312355,1704471116023,-500.0,0.00031232,2]
[310312356,1704471116033,-500.0,0.00031232,2]
[310312357,1704471116042,-500.0,0.00031232,2]
[310312358,1704471116052,-500.0,0.00031232,2]
[310312359,1704471116062,-776.01,0.00031232,2]
[310312360,1704471116072,-3060.91,0.00031232,2]
[310312361,1704471116081,-13727.19,0.00031232,2]
[310312362,1704471116091,-500.0,0.00031232,2]
[310312363,1704471116101,-500.0,0.00031232,2]
[310312364,1704471116111,-500.0,0.00031232,2]
[310312365,1704471116122,-1204.63,0.00031232,2]
[310312366,1704471116132,-769.65,0.00031232,2]
[310312367,1704471116142,-500.0,0.00031232,2]
[310312368,1704471116152,-3709.47,0.00031232,2]
[310312369,1704471116162,-500.0,0.00031232,2]
[310312370,1704471116172,-537.11,0.00031232,2]
[310312371,1704471116182,-4626.56,0.00031232,2]
[310312372,1704471116191,-500.0,0.00031232,2]
[310312373,1704471116201,-1733.54,0.00031232,2]
[310312374,1704471116211,-500.0,0.00031232,2]
[310312375,1704471116221,-3029.39,0.00031232,2]
[310312376,1704471116231,-9181.09,0.00031232,2]
[310312377,1704471116241,-5426.23,0.00031232,2]
[310312378,1704471116251,-5834.39,0.00031232,2]
[310312379,1704471116260,-740.27,0.00031232,2]
[310312380,1704471116270,-500.0,0.00031232,2]
[310312381,1704471116280,-500.0,0.00031232,2]
[310312382,1704471116289,-500.0,0.00031232,2]
[310312383,1704471116299,-500.0,0.00031232,2]
[310312384,1704471116309,-799.71,0.00031232,2]
[310312385,1704471116319,-500.0,0.00031232,2]
[310312386,1704471116329,-500.0,0.00031232,2]
[310312387,1704471116341,-4345.18,0.00031232,2]
[310312388,1704471116350,-725.16,0.00031232,2]
[310312389,1704471116359,-500.0,0.00031232,2]
[310312390,1704471116369,-500.0,0.00031232,2]
[310312391,1704471116378,-30937.37,0.00031232,2]
[310312392,1704471116388,-605.59650291,0.00031232,2]
[310312393,1704471116398,-821.62,0.00031232,2]
[310312394,1704471116408,-500.0,0.00031232,2]
[310312395,1704471116418,-500.0,0.00031232,2]
[310312396,1704471116428,-1420.61,0.00031232,2]
[310312397,1704471116438,-500.0,0.00031232,2]
[310312398,1704471116448,-749.5,0.00031232,2]
[310312399,1704471116458,-675.77,0.00031232,2]
[310312400,1704471116469,-699.84,0.00031232,2]
[310312401,1704471116479,-900.8,0.00031232,2]
[310312402,1704471116489,-500.0,0.00031232,2]
[310312403,1704471116501,-500.0,0.00031232,2]
[310312404,1704471116511,-625.03415609,0.00031232,2]
[310312405,1704471116521,-500.0,0.00031232,2]
[310312406,1704471116531,-500.0,0.00031232,2]
[310312407,1704471116541,-500.0,0.00031232,2]
[310312408,1704471116551,-605.12,0.00031232,2]
[310312409,1704471116561,-809.12,0.00031232,2]
[310312410,1704471116570,-500.0,0.00031232,2]
[310312411,1704471116580,-1182.33,0.00031232,2]
[310312412,1704471116590,-500.0,0.00031232,2]
[310312413,1704471116600,-3777.28,0.00031232,2]
[310312414,1704471116610,-500.0,0.00031232,2]
[310312415,1704471116620,-1058.15,0.00031232,2]
[310312416,1704471116629,-500.0,0.00031232,2]
[310312417,1704471116640,-571.4,0.00031232,2]
[310312418,1704471116650,-500.0,0.00031232,2]
[310312419,1704471116659,-830.16,0.00031232,2]
[310312420,1704471116669,-2249.97,0.00031232,2]
[310312421,1704471116679,-500.0,0.00031232,2]
[310312422,1704471116689,-500.0,0.00031232,2]
[310312423,1704471116698,-1921.66,0.00031232,2]
[310312424,1704471116709,-500.0,0.00031232,2]
[310312425,1704471116721,-1078.96,0.00031232,2]
[310312426,1704471116731,-500.0,0.00031232,2]
[310312427,1704471116743,-2596.11,0.00031232,2]
[310312428,1704471116753,-1277.02,0.00031232,2]
[310312429,1704471116763,-500.0,0.00031232,2]
[310312430,1704471116774,-652.62,0.00031232,2]
[310312431,1704471116785,-500.0,0.00031232,2]
[310312432,1704471116797,-500.0,0.00031232,2]
[310312433,1704471116808,-915.92,0.00031232,2]
[310312434,1704471116819,-1916.84,0.00031232,2]
[310312435,1704471116829,-500.0,0.00031232,2]
[310312436,1704471116839,-500.0,0.00031232,2]
[310312437,1704471116850,-500.0,0.00031232,2]
[310312438,1704471116860,-150.0,0.00031232,2]
[310312439,1704471116870,-582.86,0.00031232,2]
[310312440,1704471116879,-790.64,0.00031232,2]
[310312441,1704471116889,-500.0,0.00031232,2]
[310312442,1704471116899,-500.0,0.00031232,2]
[310312443,1704471116909,-500.0,0.00031232,2]
[310312444,1704471116919,-516.35547585,0.00031232,2]
[310312445,1704471116929,-3952.46,0.00031232,2]
[310312446,1704471116939,-4595.39,0.00031232,2]
[310312447,1704471116949,-500.0,0.00031232,2]
[310312448,1704471116959,-500.0,0.00031232,2]
[310312449,1704471116970,-500.0,0.00031232,2]
[310312450,1704471116980,-756.94,0.00031232,2]
[310312451,1704471116991,-500.0,0.00031232,2]
[310312452,1704471117001,-1252.88,0.00031232,2]
[310312453,1704471117011,-500.0,0.00031232,2]
[310312454,1704471117022,-717.12,0.00031232,2]
[310312455,1704471117032,-964.19,0.00031232,2]
[310312456,1704471117041,-1622.29,0.00031232,2]
[310312457,1704471117053,-500.0,0.00031232,2]
[310312458,1704471117064,-500.0,0.00031232,2]
[310312459,1704471117074,-2229.13,0.00031232,2]
[310312460,1704471117084,-629.9,0.00031232,2]
[310312461,1704471117094,-511.35,0.00031232,2]
[310312462,1704471117104,-500.0,0.00031232,2]
[310312463,1704471117114,-6081.11,0.00031232,2]
[310312464,1704471117125,-1254.57,0.00031232,2]
[310312465,1704471117135,-1984.28,0.00031232,2]
[310312466,1704471117145,-529.0,0.00031232,2]
[310312467,1704471117155,-500.0,0.00031232,2]
[310312468,1704471117165,-500.0,0.00031232,2]
[310312469,1704471117175,-730.24,0.00031232,2]
[310312470,1704471117187,-500.0,0.00031232,2]
[310312471,1704471117197,-839.46,0.00031232,2]
[310312472,1704471117207,-1375.91,0.00031232,2]
[310312473,1704471117217,-500.0,0.00031232,2]
[310312474,1704471117227,-634.34398124,0.00031232,2]
[310312475,1704471117238,-500.0,0.00031232,2]
[310312476,1704471117248,-500.0,0.00031232,2]
[310312477,1704471117258,-1622.69,0.00031232,2]
[310312478,1704471117268,-11940.29,0.00031232,2]
[310312479,1704471117278,-500.0,0.00031232,2]
[310312480,1704471117291,-500.0,0.00031232,2]
[310312481,1704471117302,-5893.72,0.00031232,2]
[310312482,1704471117312,-713.7,0.00031232,2]
[310312483,1704471117322,-1045.96,0.00031232,2]
[310312484,1704471117332,-500.0,0.00031232,2]
[310312485,1704471117341,-2605.01,0.00031232,2]
[310312486,1704471117351,-500.0,0.00031232,2]
[310312487,1704471117362,-381.78,0.00031232,2]
[310312488,1704471117371,-500.0,0.00031232,2]
[310312489,1704471117381,-500.0,0.00031232,2]
[310312490,1704471117391,-500.0,0.00031232,2]
[310312491,1704471117402,-543.11,0.00031232,2]
[310312492,1704471117412,-500.0,0.00031232,2]
[310312493,1704471117422,-500.0,0.00031232,2]
[310312494,1704471117432,-608.68,0.00031232,2]
[310312495,1704471117443,-7863.2,0.00031232,2]
[310312496,1704471117454,-2294.09,0.00031232,2]
[310312497,1704471117464,-366.40335428,0.00031232,2]
[310312498,1704471117474,-500.0,0.00031232,2]
[310312499,1704471117740,-647.48,0.00031232,2]
[310312500,1704471117752,-500.0,0.00031232,2]
[310312501,1704471117762,-1192.53,0.00031232,2]
[310312502,1704471117773,-3601.71,0.00031232,2]
[310312503,1704471117784,-500.0,0.00031232,2]
[310312504,1704471117794,-1603.38,0.00031232,2]
[310312505,1704471117805,-500.0,0.00031232,2]
[310312506,1704471117817,-770.23,0.00031232,2]
[310312507,1704471117826,-500.0,0.00031232,2]
[310312508,1704471117837,-500.0,0.00031232,2]
[310312509,1704471117848,-618.49,0.00031232,2]
[310312510,1704471117858,-2938.06,0.00031232,2]
[310312511,1704471117867,-333.07368468,0.00031232,2]
[310312512,1704471117876,-1744.78,0.00031232,2]
[310312513,1704471117886,-500.0,0.00031232,2]
[310312514,1704471117896,-666.36,0.00031232,2]
[310312515,1704471117906,-500.0,0.00031232,2]
[310312516,1704471117915,-500.0,0.00031232,2]
[310312517,1704471117925,-500.0,0.00031232,2]
[310312518,1704471117936,-5976.75,0.00031232,2]
[310312519,1704471117946,-2064.43,0.00031232,2]
[310312520,1704471117955,-500.0,0.00031232,2]
[310312521,1704471117965,-5218.54,0.00031232,2]
[310312522,1704471117974,-526.45,0.00031232,2]
[310312523,1704471117983,-554.78,0.00031232,2]
[310312524,1704471117994,-770.2,0.00031232,2]
[310312525,1704471118004,-500.0,0.00031232,2]
[310312526,1704471118014,-1624.24,0.00031232,2]
[310312527,1704471118024,-500.0,0.00031232,2]
[310312528,1704471118034,-650.01,0.00031232,2]
[310312529,1704471118044,-657.7,0.00031232,2]
[310312530,1704471118054,-500.0,0.00031232,2]
[310312531,1704471118064,-500.0,0.00031232,2]
[310312532,1704471118074,-899.11,0.00031232,2]
[310312533,1704471118083,-500.0,0.00031232,2]
[310312534,1704471118093,-2564.8,0.00031232,2]
[310312535,1704471118104,-912.23,0.00031232,2]
[310312536,1704471118114,-500.0,0.00031232,2]
[310312537,1704471118123,-701.65,0.00031232,2]
[310312538,1704471118133,-733.59,0.00031232,2]
[310312539,1704471118143,-1151.0,0.00031232,2]
[310312540,1704471118153,-561.12140868,0.00031232,2]
[310312541,1704471118163,-788.16,0.00031232,2]
[310312542,1704471118174,-500.0,0.00031232,2]
[310312543,1704471118184,-1833.74,0.00031232,2]
[310312544,1704471118193,-1286.65,0.00031232,2]
[310312545,1704471118203,-1365.11,0.00031232,2]
[310312546,1704471118213,-500.0,0.00031232,2]
[310312547,1704471118222,-1004.41,0.00031232,2]
[310312548,1704471118232,-1188.06,0.00031232,2]
[310312549,1704471118242,-500.0,0.00031232,2]
[310312550,1704471118252,-500.0,0.00031232,2]
[310312551,1704471118261,-500.0,0.00031232,2]
[310312552,1704471118271,-500.0,0.00031232,2]
[310312553,1704471118281,-500.0,0.00031232,2]
[310312554,1704471118290,-889.44,0.00031232,2]
[310312555,1704471118300,-718.53,0.00031232,2]
[310312556,1704471118310,-799.46,0.00031232,2]
[310312557,1704471118320,-1229.01,0.00031232,2]
[310312558,1704471118330,-500.0,0.00031232,2]
[310312559,1704471118341,-2168.33,0.00031232,2]
[310312560,1704471118350,-620.55379758,0.00031232,2]
[310312561,1704471118360,-1440.65,0.00031232,2]
[310312562,1704471118370,-1007.17,0.00031232,2]
[310312563,1704471118381,-500.0,0.00031232,2]
[310312564,1704471118391,-500.0,0.00031232,2]
[310312565,1704471118400,-1492.25,0.00031232,2]
[310312566,1704471118410,-1310.28,0.00031232,2]
[310312567,1704471118421,-1033.01,0.00031232,2]
[310312568,1704471118430,-500.0,0.00031232,2]
[310312569,1704471118440,-500.0,0.00031232,2]
[310312570,1704471118451,-8762.76,0.00031232,2]
[310312571,1704471118460,-500.0,0.00031232,2]
[310312572,1704471118470,-500.0,0.00031232,2]
[310312573,1704471118480,-1037.25,0.00031232,2]
[310312574,1704471118490,-500.0,0.00031232,2]
[310312575,1704471118501,-721.62,0.00031232,2]
[310312576,1704471118513,-500.0,0.00031232,2]
[310312577,1704471118523,-1254.6,0.00031232,2]
[310312578,1704471118532,-1235.07,0.00031232,2]
[310312579,1704471118542,-500.0,0.00031232,2]
[310312580,1704471118552,-500.0,0.00031232,2]
[310312581,1704471118561,-1231.65,0.00031232,2]
[310312582,1704471118572,-1175.89,0.00031232,2]
[310312583,1704471118582,-500.0,0.00031232,2]
[310312584,1704471118592,-500.0,0.00031232,2]
[310312585,1704471118602,-500.0,0.00031232,2]
[310312586,1704471118612,-2988.81,0.00031232,2]
[310312587,1704471118621,-500.0,0.00031232,2]
[310312588,1704471118631,-8593.4,0.00031232,2]
[310312589,1704471118641,-1078.8,0.00031232,2]
[310312590,1704471118651,-858.78,0.00031232,2]
[310312591,1704471118660,-500.0,0.00031232,2]
[310312592,1704471118670,-1000.0,0.00031232,2]
[310312593,1704471118680,-500.0,0.00031232,2]
[310312594,1704471118689,-500.0,0.00031232,2]
[310312595,1704471118699,-500.0,0.00031232,2]
[310312596,1704471118709,-500.0,0.00031232,2]
[310312597,1704471118718,-500.0,0.00031232,2]
[310312598,1704471118729,-500.0,0.00031232,2]
[310312599,1704471118740,-500.0,0.00031232,2]
[310312600,1704471118752,-775.55,0.00031232,2]
[310312601,1704471118762,-508.85,0.00031232,2]
[310312602,1704471118773,-13181.47,0.00031232,2]
[310312603,1704471118784,-500.0,0.00031232,2]
[310312604,1704471118794,-2255.28,0.00031232,2]
[310312605,1704471118803,-1023.39,0.00031232,2]
[310312606,1704471118813,-1387.79,0.00031232,2]
[310312607,1704471118823,-500.0,0.00031232,2]
[310312608,1704471118832,-500.0,0.00031232,2]
[310312609,1704471118842,-500.0,0.00031232,2]
[310312610,1704471118853,-507.25,0.00031232,2]
[310312611,1704471118862,-615.53,0.00031232,2]
[310312612,1704471118871,-500.0,0.00031232,2]
[310312613,1704471118881,-2939.6,0.00031232,2]
[310312614,1704471118890,-500.0,0.00031232,2]
[310312615,1704471118899,-500.0,0.00031232,2]
[310312616,1704471118909,-500.0,0.00031232,2]
[310312617,1704471118918,-500.0,0.00031232,2]
[310312618,1704471118928,-875.24,0.00031232,2]
[310312619,1704471118938,-500.0,0.00031232,2]
[310312620,1704471118948,-534.68,0.00031232,2]
[310312621,1704471118958,-871.56,0.00031232,2]
[310312622,1704471118967,-735.74,0.00031232,2]
[310312623,1704471118977,-1299.1,0.00031232,2]
[310312624,1704471118987,-1104.41,0.00031232,2]